[Event "56th Biel Festival MTO 2023"]
[White "Zhang,Lanlin"]
[Black "Jaivardhan Raj"]
[Site "Biel"]
[Round "5.37"]
[Annotator "NA RC"]
[Result "1-0"]
[Date "2023.07.21"]
[WhiteElo "2194"]
[BlackElo "2009"]
[PlyCount "77"]
[TimeControl "60"]

1. e4 {[%emt 0:0:0]} c5 {[%emt 0:0:0]} 2. Nf3 {[%emt 0:0:0]} e6 {[%emt 0:0:0]} 3. d4 {[%emt 0:0:0]} cxd4 {[%emt 0:0:0]} 4. Nxd4 {[%emt 0:0:0]} Nc6 {[%emt 0:0:0]} 5. Nc3 {[%emt 0:0:0]} Qc7 {[%emt 0:0:0]} 6. g3 {[%emt 0:0:0]} a6 {[%emt 0:0:0]} 7. Bg2 {[%emt 0:0:0]} Nf6 {[%emt 0:0:0]} 8. O-O {[%emt 0:0:0]} d6 {[%emt 0:0:0]} 9. Be3 {[%emt 0:0:0]} Ne5 {[%emt 0:0:0]} 10. a4 {[%emt 0:0:18]} Be7 {[%emt 0:0:0]} 11. Qe2 {[%emt 0:2:57]} O-O {[%emt 0:0:0]} 12. Rad1 {[%emt 0:0:40]} Bd7 {[%emt 0:4:3]} 13. Bc1 {[%emt 0:2:27]} Nc6 {[%emt 0:4:10]} 14. Nb3 {[%emt 0:1:52]} Rab8 {[%emt 0:4:46]} 15. f4 {[%emt 0:3:7]} Rfd8 {[%emt 0:12:36]} 16. Be3 {[%emt 0:7:58]} Na5 {[%emt 0:1:25]} 17. e5 {[%emt 0:9:6]} Ne8 {[%emt 0:3:32]} 18. Nxa5 {[%emt 0:5:53]} Qxa5 {[%emt 0:0:4]} 19. Bd4 {[%emt 0:0:22]} Qc7 {[%emt 0:11:31]} 20. f5 {[%emt 0:4:55]} dxe5 {[%emt 0:6:7]} 21. Qxe5 {[%emt 0:10:31]} Bd6 {[%emt 0:9:26]} 22. Qe3 {[%emt 0:1:50]} b6 {[%emt 0:0:41]} 23. Ne4 {[%emt 0:18:51]} Be5 {[%emt 0:1:17]} 24. f6 {[%emt 0:0:43]} Nxf6 {[%emt 0:6:56]} 25. Rxf6 {[%emt 0:1:9]} gxf6 {[%emt 0:2:12]} 26. Nxf6+ {[%emt 0:0:12]} Bxf6 {[%emt 0:1:38]} 27. Bxf6 {[%emt 0:0:4]} Kf8 {[%emt 0:4:3]} 28. Qh6+ {[%emt 0:2:18]} Ke8 {[%emt 0:0:7]} 29. Qxh7 {[%emt 0:0:5]} Qc5+ {[%emt 0:4:22]} 30. Kh1 {[%emt 0:0:3]} Qf8 {[%emt 0:2:23]} 31. Bg7 {[%emt 0:0:40]} Bxa4 {[%emt 0:1:39]} 32. Rxd8+ {[%emt 0:0:7]} Rxd8 {[%emt 0:0:5]} 33. Bxf8 {[%emt 0:0:3]} Rd1+ {[%emt 0:1:14]} 34. Bf1 {[%emt 0:0:4]} Rxf1+ {[%emt 0:1:20]} 35. Kg2 {[%emt 0:0:4]} Rc1 {[%emt 0:0:11]} 36. Ba3 {[%emt 0:0:17]} Rxc2+ {[%emt 0:0:12]} 37. Kf3 {[%emt 0:0:8]} Bc6+ {[%emt 0:0:19]} 38. Ke3 {[%emt 0:0:6]} Rc4 {[%emt 0:0:57]} 39. Qg8+ {[%emt 0:0:4]} 1-0

[Event "56th Biel Festival MTO 2023"]
[White "Matta,Vinay Kumar"]
[Black "Coles,Ruben"]
[Site "Biel"]
[Round "5.38"]
[Annotator "RC"]
[Result "0-1"]
[Date "2023.07.21"]
[WhiteElo "2111"]
[BlackElo "2167"]
[PlyCount "74"]
[TimeControl "60"]

1. e4 {[%emt 0:0:0]} e6 {[%emt 0:0:0]} 2. d4 {[%emt 0:0:0]} d5 {[%emt 0:0:0]} 3. e5 {[%emt 0:0:0]} c5 {[%emt 0:0:0]} 4. c3 {[%emt 0:0:0]} Nc6 {[%emt 0:0:0]} 5. Nf3 {[%emt 0:0:0]} Qb6 {[%emt 0:0:0]} 6. Bd3 {[%emt 0:0:0]} cxd4 {[%emt 0:0:0]} 7. O-O {[%emt 0:0:0]} Bd7 {[%emt 0:0:0]} 8. h4 {[%emt 0:0:0]} a6 {[%emt 0:0:0]} 9. Qe2 {[%emt 0:0:0]} Nge7 {[%emt 0:0:0]} 10. Nbd2 {[%emt 0:0:0]} dxc3 {[%emt 0:0:0]} 11. bxc3 {[%emt 0:0:0]} Ng6 {[%emt 0:0:56]} 12. Nb3 {[%emt 0:5:15]} Qc7 {[%emt 0:4:15]} 13. Re1 {[%emt 0:0:56]} f6 {[%emt 0:3:21]} 14. exf6 {[%emt 0:4:12]} gxf6 {[%emt 0:0:39]} 15. Qc2 {[%emt 0:20:56]} O-O-O {[%emt 0:7:16]} 16. Bxg6 {[%emt 0:8:40]} hxg6 {[%emt 0:0:15]} 17. Qxg6 {[%emt 0:0:10]} Bd6 {[%emt 0:6:15]} 18. Qxf6 {[%emt 0:8:19]} Rdf8 {[%emt 0:2:2]} 19. Qg7 {[%emt 0:7:43]} e5 {[%emt 0:6:51]} 20. Bg5 {[%emt 0:11:4]} e4 {[%emt 0:4:24]} 21. Nfd4 {[%emt 0:0:42]} Be5 {[%emt 0:1:38]} 22. Qg6 {[%emt 0:0:26]} Nxd4 {[%emt 0:1:8]} 23. Nxd4 {[%emt 0:16:10]} Bxd4 {[%emt 0:2:24]} 24. cxd4 {[%emt 0:0:8]} Bf5 {[%emt 0:0:17]} 25. Qxf5+ {[%emt 0:0:16]} Rxf5 {[%emt 0:0:13]} 26. Rac1 {[%emt 0:0:8]} Rf7 {[%emt 0:8:5]} 27. Rxc7+ {[%emt 0:2:20]} Rxc7 {[%emt 0:2:28]} 28. g4 {[%emt 0:0:22]} Rf7 {[%emt 0:12:21]} 29. Kg2 {[%emt 0:2:31]} Rg8 {[%emt 0:3:40]} 30. Re3 {[%emt 0:2:41]} Rgf8 {[%emt 0:4:49]} 31. Rc3+ {[%emt 0:1:23]} Kd7 {[%emt 0:4:3]} 32. Rc2 {[%emt 0:4:45]} Rf3 {[%emt 0:6:22]} 33. Be3 {[%emt 0:1:30]} Rg8 {[%emt 0:4:34]} 34. g5 {[%emt 0:0:32]} Rh8 {[%emt 0:1:6]} 35. Rc5 {[%emt 0:0:10]} Kd6 {[%emt 0:1:3]} 36. Rc1 {[%emt 0:1:2]} Rxh4 {[%emt 0:3:27]} 37. Rc8 {[%emt 0:0:6]} Rg4+ {[%emt 0:2:16]} 0-1

[Event "56th Biel Festival MTO 2023"]
[White "Adocchio,Giampiero"]
[Black "Prieb,Robert"]
[Site "Biel"]
[Round "5.39"]
[Annotator "NA RC"]
[Result "1/2-1/2"]
[Date "2023.07.21"]
[WhiteElo "2165"]
[BlackElo "2060"]
[PlyCount "37"]
[TimeControl "60"]

1. d4 {[%emt 0:0:0]} d5 {[%emt 0:0:0]} 2. Nf3 {[%emt 0:0:0]} Nf6 {[%emt 0:0:0]} 3. e3 {[%emt 0:0:0]} g6 {[%emt 0:0:0]} 4. Bd3 {[%emt 0:0:0]} Bg7 {[%emt 0:0:0]} 5. Nbd2 {[%emt 0:0:0]} O-O {[%emt 0:0:0]} 6. O-O {[%emt 0:0:0]} c5 {[%emt 0:0:0]} 7. c3 {[%emt 0:7:1]} Nc6 {[%emt 0:1:59]} 8. dxc5 {[%emt 0:0:30]} Nd7 {[%emt 0:2:40]} 9. Nb3 {[%emt 0:0:30]} a5 {[%emt 0:16:16]} 10. a4 {[%emt 0:0:40]} Qc7 {[%emt 0:3:31]} 11. Be2 {[%emt 0:21:41]} e6 {[%emt 0:8:28]} 12. Nfd4 {[%emt 0:2:6]} Ne7 {[%emt 0:5:34]} 13. Nb5 {[%emt 0:1:12]} Qc6 {[%emt 0:0:27]} 14. N3d4 {[%emt 0:16:8]} Qxc5 {[%emt 0:12:55]} 15. b4 {[%emt 0:0:30]} Qb6 {[%emt 0:0:30]} 16. bxa5 {[%emt 0:0:30]} Qd8 {[%emt 0:0:30]} 17. Ba3 {[%emt 0:1:50]} Be5 {[%emt 0:1:48]} 18. f4 {[%emt 0:7:51]} Bb8 {[%emt 0:0:44]} 19. Kh1 {[%emt 0:22:35]} 1/2-1/2

[Event "56th Biel Festival MTO 2023"]
[White "Rotunno,Flavio"]
[Black "Wang,Chuqiao"]
[Site "Biel"]
[Round "5.40"]
[Annotator "NA RC"]
[Result "1/2-1/2"]
[Date "2023.07.21"]
[WhiteElo "2005"]
[BlackElo "2161"]
[PlyCount "39"]
[TimeControl "60"]

1. d4 {[%emt 0:0:0]} Nf6 {[%emt 0:0:0]} 2. c4 {[%emt 0:0:0]} e6 {[%emt 0:0:0]} 3. Nf3 {[%emt 0:0:0]} d5 {[%emt 0:0:0]} 4. Nc3 {[%emt 0:0:0]} c6 {[%emt 0:0:0]} 5. e3 {[%emt 0:0:0]} Nbd7 {[%emt 0:0:0]} 6. Qc2 {[%emt 0:0:0]} Bd6 {[%emt 0:0:0]} 7. b3 {[%emt 0:0:0]} Qe7 {[%emt 0:0:0]} 8. Be2 {[%emt 0:0:0]} O-O {[%emt 0:0:0]} 9. O-O {[%emt 0:0:0]} b6 {[%emt 0:0:0]} 10. Bb2 {[%emt 0:0:0]} Bb7 {[%emt 0:0:0]} 11. Rad1 {[%emt 0:0:0]} Rac8 {[%emt 0:0:0]} 12. e4 {[%emt 0:2:31]} e5 {[%emt 0:4:1]} 13. Rfe1 {[%emt 0:16:11]} dxe4 {[%emt 0:12:34]} 14. dxe5 {[%emt 0:20:12]} Nxe5 {[%emt 0:1:19]} 15. Nxe4 {[%emt 0:3:27]} Nxe4 {[%emt 0:1:31]} 16. Qxe4 {[%emt 0:22:8]} c5 {[%emt 0:2:11]} 17. Qe3 {[%emt 0:4:29]} Nxf3+ {[%emt 0:9:27]} 18. Bxf3 {[%emt 0:0:45]} Qxe3 {[%emt 0:0:31]} 19. Rxe3 {[%emt 0:0:32]} Bxf3 {[%emt 0:0:24]} 20. Rxf3 {[%emt 0:5:12]} 1/2-1/2

[Event "56th Biel Festival MTO 2023"]
[White "Misiano,Franco"]
[Black "Coles,Robin"]
[Site "Biel"]
[Round "5.41"]
[Annotator "NA RC"]
[Result "1/2-1/2"]
[Date "2023.07.21"]
[WhiteElo "2133"]
[BlackElo "2070"]
[PlyCount "78"]
[TimeControl "60"]

1. e4 {[%emt 0:0:0]} e6 {[%emt 0:0:0]} 2. d4 {[%emt 0:0:0]} d5 {[%emt 0:0:0]} 3. Nd2 {[%emt 0:0:0]} c5 {[%emt 0:0:0]} 4. exd5 {[%emt 0:0:0]} exd5 {[%emt 0:0:0]} 5. Ngf3 {[%emt 0:0:0]} Nc6 {[%emt 0:0:0]} 6. Bb5 {[%emt 0:0:0]} Qe7+ {[%emt 0:0:0]} 7. Be2 {[%emt 0:0:0]} Qc7 {[%emt 0:0:0]} 8. O-O {[%emt 0:0:0]} Nf6 {[%emt 0:0:0]} 9. Bb5 {[%emt 0:0:0]} cxd4 {[%emt 0:0:0]} 10. Re1+ {[%emt 0:0:0]} Be7 {[%emt 0:0:0]} 11. Nxd4 {[%emt 0:0:0]} O-O {[%emt 0:0:0]} 12. Bxc6 {[%emt 0:2:7]} bxc6 {[%emt 0:0:0]} 13. h3 {[%emt 0:1:18]} Bd6 {[%emt 0:0:10]} 14. N2f3 {[%emt 0:2:58]} h6 {[%emt 0:3:19]} 15. Be3 {[%emt 0:1:29]} Bd7 {[%emt 0:5:2]} 16. Qc1 {[%emt 0:1:54]} Ne4 {[%emt 0:5:5]} 17. Ne2 {[%emt 0:1:28]} c5 {[%emt 0:7:52]} 18. Bf4 {[%emt 0:1:23]} Rfe8 {[%emt 0:2:43]} 19. Bxd6 {[%emt 0:0:51]} Qxd6 {[%emt 0:0:40]} 20. Qf4 {[%emt 0:2:31]} Rab8 {[%emt 0:6:32]} 21. Qxd6 {[%emt 0:0:50]} Nxd6 {[%emt 0:0:2]} 22. b3 {[%emt 0:0:10]} g5 {[%emt 0:8:19]} 23. Rad1 {[%emt 0:1:27]} Bc6 {[%emt 0:2:52]} 24. Ng3 {[%emt 0:1:12]} f6 {[%emt 0:3:33]} 25. Rxe8+ {[%emt 0:2:23]} Rxe8 {[%emt 0:1:20]} 26. Re1 {[%emt 0:0:14]} a5 {[%emt 0:5:24]} 27. a4 {[%emt 0:3:9]} d4 {[%emt 0:6:6]} 28. Rxe8+ {[%emt 0:0:58]} Bxe8 {[%emt 0:0:49]} 29. Kf1 {[%emt 0:1:54]} Bg6 {[%emt 0:3:23]} 30. Ne1 {[%emt 0:0:16]} Kf7 {[%emt 0:12:17]} 31. Nd3 {[%emt 0:1:31]} c4 {[%emt 0:3:6]} 32. bxc4 {[%emt 0:1:2]} Nxc4 {[%emt 0:0:5]} 33. Ne2 {[%emt 0:1:14]} Na3 {[%emt 0:6:3]} 34. Ke1 {[%emt 0:1:12]} Nxc2+ {[%emt 0:4:25]} 35. Kd2 {[%emt 0:0:10]} Na3 {[%emt 0:0:53]} 36. Nxd4 {[%emt 0:0:39]} Nc4+ {[%emt 0:0:20]} 37. Kc3 {[%emt 0:0:16]} Bxd3 {[%emt 0:0:47]} 38. Kxd3 {[%emt 0:0:3]} Nb2+ {[%emt 0:0:39]} 39. Ke3 {[%emt 0:0:32]} Nxa4 {[%emt 0:0:17]} 1/2-1/2

[Event "56th Biel Festival MTO 2023"]
[White "Lohia,Sohum"]
[Black "Stijve,Niels"]
[Site "Biel"]
[Round "5.42"]
[Annotator "NA"]
[Result "1-0"]
[Date "2023.07.21"]
[WhiteElo "2247"]
[BlackElo "2088"]
[PlyCount "91"]
[TimeControl "60"]

1. e4 {[%emt 0:0:0]} c5 {[%emt 0:0:0]} 2. Nf3 {[%emt 0:0:0]} e6 {[%emt 0:0:0]} 3. d4 {[%emt 0:0:0]} cxd4 {[%emt 0:0:0]} 4. Nxd4 {[%emt 0:0:0]} a6 {[%emt 0:0:0]} 5. c4 {[%emt 0:0:0]} Nf6 {[%emt 0:0:0]} 6. Nc3 {[%emt 0:0:0]} Bb4 {[%emt 0:0:0]} 7. Qd3 {[%emt 0:0:0]} Qc7 {[%emt 0:0:0]} 8. a3 {[%emt 0:0:0]} Bxc3+ {[%emt 0:0:0]} 9. Qxc3 {[%emt 0:0:0]} O-O {[%emt 0:0:0]} 10. Bd3 {[%emt 0:0:0]} d6 {[%emt 0:0:0]} 11. O-O {[%emt 0:0:0]} e5 {[%emt 0:0:0]} 12. Nc2 {[%emt 0:0:0]} Be6 {[%emt 0:0:0]} 13. Bg5 {[%emt 0:4:15]} Nbd7 {[%emt 0:0:0]} 14. Ne3 {[%emt 0:2:2]} Rac8 {[%emt 0:8:47]} 15. Rac1 {[%emt 0:2:29]} Qb8 {[%emt 0:3:17]} 16. b4 {[%emt 0:20:23]} b5 {[%emt 0:21:34]} 17. Bxf6 {[%emt 0:5:50]} Nxf6 {[%emt 0:3:12]} 18. Qd2 {[%emt 0:5:38]} bxc4 {[%emt 0:7:30]} 19. Nxc4 {[%emt 0:0:51]} Nxe4 {[%emt 0:16:31]} 20. Bxe4 {[%emt 0:1:24]} Bxc4 {[%emt 0:8:27]} 21. Bxh7+ {[%emt 0:1:21]} Kxh7 {[%emt 0:0:19]} 22. Rxc4 {[%emt 0:0:15]} Rxc4 {[%emt 0:0:14]} 23. Qd3+ {[%emt 0:0:9]} Kg8 {[%emt 0:0:8]} 24. Qxc4 {[%emt 0:0:8]} Qb7 {[%emt 0:0:7]} 25. Rc1 {[%emt 0:1:44]} Qb5 {[%emt 0:10:32]} 26. g3 {[%emt 0:6:26]} Qa4 {[%emt 0:5:42]} 27. Rc3 {[%emt 0:4:54]} Rd8 {[%emt 0:5:0]} 28. Qd5 {[%emt 0:1:13]} Qb5 {[%emt 0:2:21]} 29. Qxb5 {[%emt 0:10:5]} axb5 {[%emt 0:0:7]} 30. Rc6 {[%emt 0:0:27]} Kf8 {[%emt 0:3:46]} 31. Rb6 {[%emt 0:1:7]} Ke7 {[%emt 0:0:14]} 32. Rxb5 {[%emt 0:0:16]} Ra8 {[%emt 0:0:7]} 33. Ra5 {[%emt 0:9:35]} Rxa5 {[%emt 0:0:21]} 34. bxa5 {[%emt 0:0:1]} Kd7 {[%emt 0:0:10]} 35. f4 {[%emt 0:9:38]} f5 {[%emt 0:5:28]} 36. fxe5 {[%emt 0:2:58]} dxe5 {[%emt 0:0:2]} 37. g4 {[%emt 0:0:33]} fxg4 {[%emt 0:2:54]} 38. Kf2 {[%emt 0:0:9]} Kc6 {[%emt 0:0:47]} 39. Kg3 {[%emt 0:0:21]} Kb5 {[%emt 0:0:14]} 40. Kxg4 {[%emt 0:0:40]} Kxa5 {[%emt 0:1:15]} 41. Kf5 {[%emt 0:30:9]} Ka4 {[%emt 0:30:29]} 42. Kxe5 {[%emt 0:0:6]} Kxa3 {[%emt 0:0:6]} 43. Kf5 {[%emt 0:0:17]} Kb4 {[%emt 0:0:18]} 44. Kg6 {[%emt 0:0:8]} Kc5 {[%emt 0:0:13]} 45. h4 {[%emt 0:0:45]} Kd5 {[%emt 0:0:13]} 46. h5 {[%emt 0:0:0]} 1-0

[Event "56th Biel Festival MTO 2023"]
[White "Ozcan,Kaan"]
[Black "Matsumura,Cocoro"]
[Site "Biel"]
[Round "5.43"]
[Annotator "RC"]
[Result "0-1"]
[Date "2023.07.21"]
[WhiteElo "2196"]
[BlackElo "2081"]
[PlyCount "160"]
[TimeControl "60"]

1. d4 {[%emt 0:0:0]} d5 {[%emt 0:0:0]} 2. c4 {[%emt 0:0:0]} e6 {[%emt 0:0:0]} 3. Nc3 {[%emt 0:0:0]} Nf6 {[%emt 0:0:0]} 4. Bg5 {[%emt 0:0:0]} dxc4 {[%emt 0:0:0]} 5. e3 {[%emt 0:0:0]} c5 {[%emt 0:0:0]} 6. dxc5 {[%emt 0:0:0]} Nbd7 {[%emt 0:0:23]} 7. Nf3 {[%emt 0:8:44]} Bxc5 {[%emt 0:2:0]} 8. Bxc4 {[%emt 0:2:2]} O-O {[%emt 0:0:56]} 9. O-O {[%emt 0:1:12]} a6 {[%emt 0:1:17]} 10. Be2 {[%emt 0:5:22]} b5 {[%emt 0:12:46]} 11. Nd4 {[%emt 0:4:17]} Bb7 {[%emt 0:7:45]} 12. Bf3 {[%emt 0:5:2]} Qb8 {[%emt 0:10:19]} 13. Rc1 {[%emt 0:7:51]} Bxf3 {[%emt 0:12:46]} 14. Nxf3 {[%emt 0:6:39]} h6 {[%emt 0:3:13]} 15. Bh4 {[%emt 0:9:5]} Qb7 {[%emt 0:3:17]} 16. Qe2 {[%emt 0:4:28]} Rac8 {[%emt 0:2:55]} 17. Rfd1 {[%emt 0:1:35]} Be7 {[%emt 0:4:17]} 18. h3 {[%emt 0:10:42]} Rfd8 {[%emt 0:5:47]} 19. a3 {[%emt 0:4:41]} Nb6 {[%emt 0:3:24]} 20. Rxd8+ {[%emt 0:2:58]} Rxd8 {[%emt 0:0:35]} 21. e4 {[%emt 0:3:45]} Nc4 {[%emt 0:2:30]} 22. e5 {[%emt 0:5:52]} Nd5 {[%emt 0:1:25]} 23. Bxe7 {[%emt 0:1:52]} Qxe7 {[%emt 0:0:41]} 24. g3 {[%emt 0:4:52]} Nxc3 {[%emt 0:4:1]} 25. Rxc3 {[%emt 0:0:13]} Qd7 {[%emt 0:0:29]} 26. a4 {[%emt 0:5:26]} Qd1+ {[%emt 0:8:10]} 27. Qxd1 {[%emt 0:0:16]} Rxd1+ {[%emt 0:0:30]} 28. Kg2 {[%emt 0:0:10]} Rb1 {[%emt 0:0:17]} 29. axb5 {[%emt 0:2:44]} axb5 {[%emt 0:0:1]} 30. b3 {[%emt 0:0:20]} Nb6 {[%emt 0:1:18]} 31. Nd4 {[%emt 0:1:23]} b4 {[%emt 0:1:1]} 32. Rc6 {[%emt 0:0:47]} Nd5 {[%emt 0:0:12]} 33. Rc8+ {[%emt 0:0:21]} Kh7 {[%emt 0:0:5]} 34. Rb8 {[%emt 0:0:11]} Rb2 {[%emt 0:1:13]} 35. Kf1 {[%emt 0:1:12]} Kg6 {[%emt 0:0:34]} 36. Rb7 {[%emt 0:0:31]} Rd2 {[%emt 0:1:41]} 37. Nc6 {[%emt 0:0:50]} Rd3 {[%emt 0:0:16]} 38. Na5 {[%emt 0:0:17]} h5 {[%emt 0:0:34]} 39. h4 {[%emt 0:0:39]} Rc3 {[%emt 0:1:19]} 40. Ke2 {[%emt 0:1:14]} Rc2+ {[%emt 0:1:7]} 41. Kf1 {[%emt 0:30:48]} Rb2 {[%emt 0:30:50]} 42. Kg1 {[%emt 0:0:0]} f6 {[%emt 0:0:0]} 43. exf6 {[%emt 0:0:0]} gxf6 {[%emt 0:0:0]} 44. Rb8 {[%emt 0:0:0]} Kf5 {[%emt 0:0:0]} 45. Re8 {[%emt 0:0:0]} e5 {[%emt 0:0:0]} 46. Rg8 {[%emt 0:0:0]} Nc3 {[%emt 0:0:0]} 47. g4+ {[%emt 0:0:0]} hxg4 {[%emt 0:0:0]} 48. Nc4 {[%emt 0:0:0]} Rb1+ {[%emt 0:0:0]} 49. Kh2 {[%emt 0:0:0]} Nd1 {[%emt 0:0:0]} 50. h5 {[%emt 0:3:1]} Rxb3 {[%emt 0:0:0]} 51. Nd6+ {[%emt 0:1:59]} Ke6 {[%emt 0:0:0]} 52. Rxg4 {[%emt 0:0:47]} Nxf2 {[%emt 0:0:0]} 53. Rh4 {[%emt 0:1:4]} Ra3 {[%emt 0:0:0]} 54. Nb5 {[%emt 0:0:14]} Rh3+ {[%emt 0:0:0]} 55. Rxh3 {[%emt 0:0:26]} Nxh3 {[%emt 0:0:0]} 56. Kxh3 {[%emt 0:0:12]} b3 {[%emt 0:0:0]} 57. Kg4 {[%emt 0:0:54]} b2 {[%emt 0:0:0]} 58. Nc3 {[%emt 0:0:4]} f5+ {[%emt 0:2:34]} 59. Kf3 {[%emt 0:0:35]} Kf7 {[%emt 0:1:46]} 60. Ke2 {[%emt 0:0:26]} f4 {[%emt 0:0:25]} 61. Kd3 {[%emt 0:0:39]} f3 {[%emt 0:0:27]} 62. Ke3 {[%emt 0:0:43]} e4 {[%emt 0:0:9]} 63. Kf2 {[%emt 0:0:25]} Kg7 {[%emt 0:0:13]} 64. Ke3 {[%emt 0:0:16]} Kh6 {[%emt 0:0:13]} 65. Kf2 {[%emt 0:0:15]} Kxh5 {[%emt 0:0:6]} 66. Kg3 {[%emt 0:0:9]} Kg6 {[%emt 0:0:14]} 67. Kf2 {[%emt 0:0:26]} Kf5 {[%emt 0:0:22]} 68. Ke3 {[%emt 0:0:33]} Ke5 {[%emt 0:0:21]} 69. Nb1 {[%emt 0:0:28]} Kd6 {[%emt 0:1:4]} 70. Nd2 {[%emt 0:0:9]} Kc6 {[%emt 0:0:43]} 71. Kf2 {[%emt 0:0:49]} Kd5 {[%emt 0:2:22]} 72. Ke3 {[%emt 0:0:28]} Ke6 {[%emt 0:0:10]} 73. Nb1 {[%emt 0:1:22]} Kf5 {[%emt 0:0:34]} 74. Nc3 {[%emt 0:0:43]} Kg4 {[%emt 0:0:26]} 75. Kf2 {[%emt 0:1:7]} Kf4 {[%emt 0:0:15]} 76. Nd5+ {[%emt 0:0:5]} Ke5 {[%emt 0:0:16]} 77. Nc3 {[%emt 0:0:5]} Kd4 {[%emt 0:0:14]} 78. Nb5+ {[%emt 0:0:21]} Kd3 {[%emt 0:0:29]} 79. Na3 {[%emt 0:0:4]} Kd2 {[%emt 0:1:12]} 80. Nb1+ {[%emt 0:0:35]} Kc1 {[%emt 0:0:21]} 0-1

[Event "56th Biel Festival MTO 2023"]
[White "Papaux,Steve"]
[Black "Ammar,Sedrani"]
[Site "Biel"]
[Round "5.44"]
[Annotator "NA"]
[Result "0-1"]
[Date "2023.07.21"]
[WhiteElo "2064"]
[BlackElo "2154"]
[PlyCount "102"]
[TimeControl "60"]

1. d4 {[%emt 0:0:0]} d5 {[%emt 0:0:0]} 2. c4 {[%emt 0:0:0]} e6 {[%emt 0:0:0]} 3. Nf3 {[%emt 0:0:0]} Nf6 {[%emt 0:0:0]} 4. g3 {[%emt 0:0:0]} dxc4 {[%emt 0:0:0]} 5. Bg2 {[%emt 0:0:0]} Nc6 {[%emt 0:0:0]} 6. O-O {[%emt 0:0:0]} Rb8 {[%emt 0:1:48]} 7. a4 {[%emt 0:0:0]} a6 {[%emt 0:1:21]} 8. Na3 {[%emt 0:0:0]} b5 {[%emt 0:2:15]} 9. axb5 {[%emt 0:0:0]} axb5 {[%emt 0:0:8]} 10. Nxb5 {[%emt 0:0:32]} Rxb5 {[%emt 0:0:26]} 11. Qa4 {[%emt 0:0:4]} Ra5 {[%emt 0:10:3]} 12. Qxc6+ {[%emt 0:0:4]} Bd7 {[%emt 0:0:1]} 13. Qxd7+ {[%emt 0:0:7]} Nxd7 {[%emt 0:1:11]} 14. Rxa5 {[%emt 0:0:3]} Bd6 {[%emt 0:1:43]} 15. Nd2 {[%emt 0:6:43]} Nb6 {[%emt 0:9:17]} 16. Nxc4 {[%emt 0:1:22]} O-O {[%emt 0:0:17]} 17. b3 {[%emt 0:9:52]} Nxc4 {[%emt 0:9:5]} 18. bxc4 {[%emt 0:0:3]} c5 {[%emt 0:0:12]} 19. Ra8 {[%emt 0:0:31]} Qb6 {[%emt 0:0:16]} 20. dxc5 {[%emt 0:3:40]} Bxc5 {[%emt 0:0:35]} 21. Rxf8+ {[%emt 0:13:53]} Kxf8 {[%emt 0:0:3]} 22. Be4 {[%emt 0:2:20]} Qb3 {[%emt 0:2:43]} 23. Bd3 {[%emt 0:0:16]} Qc3 {[%emt 0:4:39]} 24. Bg5 {[%emt 0:2:26]} h5 {[%emt 0:8:12]} 25. Rb1 {[%emt 0:2:28]} f6 {[%emt 0:0:14]} 26. Rb8+ {[%emt 0:1:30]} Ke7 {[%emt 0:0:1]} 27. Rb7+ {[%emt 0:1:27]} Kd6 {[%emt 0:0:27]} 28. Be3 {[%emt 0:0:13]} Bxe3 {[%emt 0:0:30]} 29. fxe3 {[%emt 0:0:4]} f5 {[%emt 0:2:45]} 30. Kf2 {[%emt 0:1:15]} g6 {[%emt 0:0:35]} 31. h3 {[%emt 0:6:19]} h4 {[%emt 0:2:37]} 32. gxh4 {[%emt 0:0:36]} Qe5 {[%emt 0:0:5]} 33. c5+ {[%emt 0:2:39]} Qxc5 {[%emt 0:3:0]} 34. Rb5 {[%emt 0:4:20]} Qc3 {[%emt 0:6:29]} 35. e4 {[%emt 0:5:25]} f4 {[%emt 0:1:17]} 36. Rg5 {[%emt 0:0:14]} Qd4+ {[%emt 0:2:14]} 37. Kg2 {[%emt 0:0:6]} Qe3 {[%emt 0:0:24]} 38. Rxg6 {[%emt 0:1:18]} f3+ {[%emt 0:0:9]} 39. exf3 {[%emt 0:0:16]} Qxd3 {[%emt 0:0:9]} 40. h5 {[%emt 0:0:15]} Qd2+ {[%emt 0:1:37]} 41. Kg3 {[%emt 0:31:8]} Ke5 {[%emt 0:30:21]} 42. h6 {[%emt 0:1:17]} Qf4+ {[%emt 0:0:2]} 43. Kg2 {[%emt 0:0:6]} Qh4 {[%emt 0:0:6]} 44. Rg4 {[%emt 0:2:0]} Qxh6 {[%emt 0:0:2]} 45. h4 {[%emt 0:0:21]} Kd4 {[%emt 0:0:19]} 46. Kg3 {[%emt 0:0:17]} Qc1 {[%emt 0:2:10]} 47. h5 {[%emt 0:1:31]} Qe1+ {[%emt 0:0:33]} 48. Kf4 {[%emt 0:0:39]} Qd2+ {[%emt 0:0:5]} 49. Kg3 {[%emt 0:0:17]} Ke3 {[%emt 0:0:2]} 50. Rh4 {[%emt 0:2:35]} Qf2+ {[%emt 0:0:17]} 51. Kg4 {[%emt 0:0:3]} Qg2# {[%emt 0:0:4]} 0-1

[Event "56th Biel Festival MTO 2023"]
[White "Hornung,Hans"]
[Black "Akshit Kumar J"]
[Site "Biel"]
[Round "5.45"]
[Annotator "NA RC"]
[Result "0-1"]
[Date "2023.07.21"]
[WhiteElo "2047"]
[BlackElo "2105"]
[PlyCount "58"]
[TimeControl "60"]

1. Nf3 {[%emt 0:0:0]} d5 {[%emt 0:0:0]} 2. g3 {[%emt 0:0:0]} Nf6 {[%emt 0:0:0]} 3. Bg2 {[%emt 0:0:0]} c6 {[%emt 0:0:0]} 4. O-O {[%emt 0:0:0]} Bg4 {[%emt 0:0:0]} 5. d3 {[%emt 0:0:0]} Nbd7 {[%emt 0:0:0]} 6. Qe1 {[%emt 0:0:59]} e5 {[%emt 0:0:0]} 7. e4 {[%emt 0:1:8]} dxe4 {[%emt 0:0:0]} 8. dxe4 {[%emt 0:0:11]} Bc5 {[%emt 0:0:0]} 9. b4 {[%emt 0:2:18]} Bb6 {[%emt 0:6:5]} 10. Bb2 {[%emt 0:7:24]} Qe7 {[%emt 0:1:53]} 11. Na3 {[%emt 0:10:7]} a5 {[%emt 0:8:37]} 12. b5 {[%emt 0:9:18]} Bxf3 {[%emt 0:24:24]} 13. Bxf3 {[%emt 0:0:10]} Qe6 {[%emt 0:2:31]} 14. Qe2 {[%emt 0:5:8]} Rc8 {[%emt 0:2:48]} 15. Rad1 {[%emt 0:13:2]} O-O {[%emt 0:4:59]} 16. Nc4 {[%emt 0:0:48]} cxb5 {[%emt 0:3:39]} 17. Nd6 {[%emt 0:1:34]} Rc6 {[%emt 0:1:6]} 18. Nf5 {[%emt 0:1:49]} b4 {[%emt 0:7:3]} 19. Rd2 {[%emt 0:9:8]} Rfc8 {[%emt 0:3:18]} 20. Rfd1 {[%emt 0:0:54]} g6 {[%emt 0:21:37]} 21. Nh6+ {[%emt 0:5:16]} Kg7 {[%emt 0:0:17]} 22. Rxd7 {[%emt 0:2:50]} Nxd7 {[%emt 0:6:37]} 23. Bg4 {[%emt 0:0:30]} Rxc2 {[%emt 0:0:26]} 24. Bxe6 {[%emt 0:4:23]} Rxe2 {[%emt 0:0:8]} 25. Ng4 {[%emt 0:6:5]} Rxb2 {[%emt 0:1:34]} 26. Rxd7 {[%emt 0:0:6]} Rf8 {[%emt 0:0:14]} 27. Nxe5 {[%emt 0:1:6]} Rxf2 {[%emt 0:1:13]} 28. Kh1 {[%emt 0:0:47]} Kf6 {[%emt 0:1:45]} 29. Ng4+ {[%emt 0:1:1]} Kxe6 {[%emt 0:0:9]} 0-1